[Event "EYCC 2017"]
[Site "Mamaia"]
[Date "2017.09.14"]
[Round "9"]
[White "Reuter, Elisa"]
[Black "Hakobyan, Astghik"]
[Result "0-1"]
[ECO "C18"]
[WhiteElo "1910"]
[BlackElo "1708"]
[Annotator "NA RC"]
[PlyCount "92"]
[EventDate "2017.??.??"]
[EventType "swiss"]
[EventCountry "ROU"]
[SourceTitle "playchess.com"]
[Source "ChessBase"]
[SourceQuality "1"]
[TimeControl "40/5400+30:1800+30"]

1. e4 {[%emt 0:00:00]} e6 {[%emt 0:00:30]} 2. d4 {[%emt 0:00:30]} d5 {[%emt 0:00:30]} 3. Nc3 {[%emt 0:00:30]} Bb4 {[%emt 0:00:30]} 4. e5 {[%emt 0:00:30]} c5 {[%emt 0:00:30]} 5. a3 {[%emt 0:00:30]} Bxc3+ {[%emt 0:00:30]} 6. bxc3 {[%emt 0:00:30]} Ne7 {[%emt 0:00:24]} 7. Qg4 {[%emt 0:00:10]} Ng6 {[%emt 0:00:51]} 8. Bd2 {[%emt 0:06:26]} Nc6 {[%emt 0:00:44]} 9. Nf3 {[%emt 0:01:27]} Qb6 {[%emt 0:00:47]} 10. Bd3 {[%emt 0:04:54]} c4 {[%emt 0:03:46]} 11. Be2 {[%emt 0:04:16]} Qb2 {[%emt 0:01:20]} 12. O-O {[%emt 0:01:03]} Qxc2 {[%emt 0:02:23]} 13. Rfb1 {[%emt 0:05:10]} h5 {[%emt 0:07:25]} 14. Qg5 {[%emt 0:02:44]} Qf5 {[%emt 0:02:17]} 15. Qxf5 {[%emt 0:00:38]} exf5 {[%emt 0:00:06]} 16. Bd1 {[%emt 0:01:29]} b6 {[%emt 0:01:27]} 17. Bc2 {[%emt 0:03:31]} Be6 {[%emt 0:02:18]} 18. a4 {[%emt 0:02:51]} Kd7 {[%emt 0:05:28]} 19. Ne1 {[%emt 0:05:19]} Rab8 {[%emt 0:15:23]} 20. Rb2 {[%emt 0:02:24]} Rb7 {[%emt 0:01:50]} 21. Rab1 {[%emt 0:07:10]} Rhb8 {[%emt 0:02:48]} 22. Bd1 {[%emt 0:00:55]} h4 {[%emt 0:02:00]} 23. h3 {[%emt 0:02:20]} f4 {[%emt 0:04:22]} 24. Bc2 {[%emt 0:01:34]} Nce7 {[%emt 0:01:57]} 25. Kf1 {[%emt 0:01:37]} Bf5 26. Bxf5+ {[%emt 0:01:21]} Nxf5 {[%emt 0:06:11]} 27. Ke2 {[%emt 0:00:11]} Rc8 {[%emt 0:03:24]} 28. Rb4 {[%emt 0:04:14]} Nfe7 {[%emt 0:03:08]} 29. Nc2 {[%emt 0:07:08]} Ke6 {[%emt 0:01:13]} 30. Kf3 {[%emt 0:00:28]} Kf5 {[%emt 0:01:48]} 31. Rb5 {[%emt 0:04:25]} Rd7 {[%emt 0:05:06]} 32. R5b2 {[%emt 0:04:27]} Nc6 {[%emt 0:02:07]} 33. Na3 {[%emt 0:01:28]} Re8 {[%emt 0:02:39]} 34. Rc2 {[%emt 0:05:33]} f6 {[%emt 0:05:38]} 35. exf6 {[%emt 0:02:01]} gxf6 {[%emt 0:03:01]} 36. Rcc1 {[%emt 0:03:12]} Re4 {[%emt 0:01:03]} 37. g3 {[%emt 0:01:56]} fxg3 {[%emt 0:00:48]} 38. fxg3 {[%emt 0:00:08]} hxg3 {[%emt 0:01:25]} 39. Kxg3 {[%emt 0:00:09]} Rg7 {[%emt 0:01:08]} 40. Kf2 {[%emt 0:02:17]} Nf4 {[%emt 0:31:32]} 41. Bxf4 {[%emt 0:31:00]} Rxf4+ {[%emt 0:00:19]} 42. Ke2 {[%emt 0:01:42]} Rg2+ {[%emt 0:00:42]} 43. Ke1 {[%emt 0:00:12]} Rf3 {[%emt 0:00:52]} 44. Nb5 {[%emt 0:03:41]} Ke4 {[%emt 0:00:33]} 45. Na3 {[%emt 0:02:10]} Kd3 {[%emt 0:00:00]} 46. Rd1+ {[%emt 0:00:00]} Ke3 {[%emt 0:00:00]} 0-1

[Event "EYCC 2017"]
[Site "Mamaia"]
[Date "2017.09.14"]
[Round "9"]
[White "Cimpean, Andra"]
[Black "Janiashvili, Mariami"]
[Result "0-1"]
[ECO "C03"]
[WhiteElo "1901"]
[BlackElo "1875"]
[Annotator "NA RC"]
[PlyCount "70"]
[EventDate "2017.??.??"]
[EventType "swiss"]
[EventCountry "ROU"]
[SourceTitle "playchess.com"]
[Source "ChessBase"]
[SourceQuality "1"]
[TimeControl "40/5400+30:1800+30"]

1. e4 {[%emt 0:00:00]} e6 {[%emt 0:00:01]} 2. d4 {[%emt 0:00:00]} d5 {[%emt 0:00:03]} 3. Nd2 {[%emt 0:00:05]} dxe4 {[%emt 0:00:05]} 4. Nxe4 {[%emt 0:00:08]} Bd7 {[%emt 0:00:02]} 5. c4 {[%emt 0:02:33]} Bc6 {[%emt 0:00:35]} 6. Nc3 {[%emt 0:00:34]} Nf6 {[%emt 0:00:36]} 7. Nf3 {[%emt 0:02:58]} Bb4 {[%emt 0:05:56]} 8. Bd2 {[%emt 0:11:53]} (8. Be2 $14) 8... O-O {[%emt 0:04:28]} 9. Be2 {[%emt 0:00:25]} Nbd7 {[%emt 0:07:02]} 10. O-O {[%emt 0:00:30]} Nb6 {[%emt 0:00:25]} 11. a3 $11 {[%emt 0:14:52]} Be7 {[%emt 0:01:47]} 12. Be3 {[%emt 0:05:28]} Bxf3 {[%emt 0:03:49]} 13. gxf3 {[%emt 0:00:22]} Nbd7 {[%emt 0:02:07]} 14. f4 {[%emt 0:04:01]} c5 {[%emt 0:02:30]} 15. dxc5 {[%emt 0:06:20]} Bxc5 {[%emt 0:02:21]} 16. Bxc5 {[%emt 0:01:14]} Nxc5 {[%emt 0:00:04]} 17. b4 {[%emt 0:01:52]} Nce4 {[%emt 0:01:31]} 18. Nxe4 {[%emt 0:00:12]} Nxe4 {[%emt 0:00:03]} 19. Bd3 {[%emt 0:08:00]} Qd4 {[%emt 0:04:54]} 20. Qe2 {[%emt 0:06:28]} Nxf2 {[%emt 0:06:26]} 21. Qxf2 {[%emt 0:07:15]} Qxd3 {[%emt 0:00:48]} 22. c5 {[%emt 0:00:17]} Rad8 {[%emt 0:03:09]} 23. Rfc1 {[%emt 0:03:56]} Rd4 {[%emt 0:02:19]} 24. Rd1 {[%emt 0:04:52]} Qxd1+ {[%emt 0:09:55]} 25. Rxd1 {[%emt 0:00:07]} Rxd1+ {[%emt 0:00:01]} 26. Kg2 {[%emt 0:00:06]} Rfd8 {[%emt 0:00:05]} 27. Qh4 {[%emt 0:02:31]} R8d3 {[%emt 0:04:44]} 28. Qe7 {[%emt 0:00:42]} h6 {[%emt 0:03:14]} 29. Qxb7 {[%emt 0:01:02]} R1d2+ {[%emt 0:00:43]} 30. Kf1 {[%emt 0:01:24]} Rxa3 {[%emt 0:05:28]} 31. Qb8+ {[%emt 0:04:09]} Kh7 {[%emt 0:00:19]} 32. Qe5 {[%emt 0:00:15]} Raa2 {[%emt 0:03:43]} 33. Qe1 {[%emt 0:06:17]} Rxh2 {[%emt 0:00:29]} 34. Qb1+ {[%emt 0:04:05]} g6 {[%emt 0:00:20]} 35. Kg1 {[%emt 0:00:52]} Rag2+ {[%emt 0:00:05]} 0-1

[Event "EYCC 2017"]
[Site "Mamaia"]
[Date "2017.09.14"]
[Round "9"]
[White "Esadze, Tamari"]
[Black "Miroshnik, Ekaterina"]
[Result "0-1"]
[ECO "C72"]
[WhiteElo "1863"]
[BlackElo "2006"]
[Annotator "NA RC"]
[PlyCount "81"]
[EventDate "2017.??.??"]
[EventType "swiss"]
[EventCountry "ROU"]
[SourceTitle "playchess.com"]
[Source "ChessBase"]
[SourceQuality "1"]
[TimeControl "40/5400+30:1800+30"]

1. e4 {[%emt 0:00:00]} e5 {[%emt 0:00:05]} 2. Nf3 {[%emt 0:00:00]} Nc6 {[%emt 0:00:03]} 3. Bb5 {[%emt 0:00:00]} a6 {[%emt 0:00:03]} 4. Ba4 {[%emt 0:00:00]} d6 {[%emt 0:00:05]} 5. O-O {[%emt 0:04:50]} Bd7 {[%emt 0:00:12]} 6. c3 {[%emt 0:01:16]} g6 {[%emt 0:00:13]} 7. d4 {[%emt 0:01:16]} Bg7 {[%emt 0:01:17]} 8. Bb3 {[%emt 0:09:54]} Nf6 {[%emt 0:03:38]} 9. Ng5 {[%emt 0:05:15]} (9. Re1 $14) 9... O-O {[%emt 0:00:40]} 10. f4 {[%emt 0:04:06]} Bg4 {[%emt 0:24:00]} 11. Qd3 {[%emt 0:10:05]} exd4 {[%emt 0:15:51]} 12. h3 {[%emt 0:06:14]} Bc8 {[%emt 0:08:50]} 13. cxd4 $11 {[%emt 0:03:18]} d5 {[%emt 0:10:03]} 14. e5 {[%emt 0:05:22]} Ne4 {[%emt 0:04:56]} 15. Nc3 {[%emt 0:09:42]} Nxg5 {[%emt 0:01:08]} 16. fxg5 {[%emt 0:00:07]} Ne7 {[%emt 0:02:53]} 17. Qf3 {[%emt 0:06:38]} Be6 {[%emt 0:01:55]} 18. Ne2 {[%emt 0:02:51]} c5 {[%emt 0:07:35]} 19. Bf4 {[%emt 0:09:15]} cxd4 {[%emt 0:04:36]} 20. Nxd4 {[%emt 0:00:40]} Qb6 {[%emt 0:00:40]} 21. Qe3 {[%emt 0:02:27]} Rac8 {[%emt 0:03:51]} 22. Rac1 {[%emt 0:02:54]} Nc6 {[%emt 0:04:40]} 23. Nxc6 {[%emt 0:04:53]} Qxe3+ {[%emt 0:00:33]} 24. Bxe3 {[%emt 0:00:02]} Rxc6 {[%emt 0:00:04]} 25. Rxc6 {[%emt 0:01:24]} bxc6 {[%emt 0:00:01]} 26. Bd4 {[%emt 0:04:21]} Rc8 {[%emt 0:00:48]} 27. Rc1 {[%emt 0:00:14]} c5 {[%emt 0:02:18]} 28. Bc3 {[%emt 0:01:59]} Rb8 {[%emt 0:02:15]} 29. Rc2 {[%emt 0:02:47]} d4 {[%emt 0:01:10]} 30. Bxe6 {[%emt 0:00:59]} dxc3 {[%emt 0:00:22]} 31. Rxc3 {[%emt 0:01:26]} Bxe5 {[%emt 0:00:34]} 32. Ra3 {[%emt 0:01:12]} fxe6 {[%emt 0:00:24]} 33. Rxa6 {[%emt 0:00:07]} Bd4+ {[%emt 0:00:17]} 34. Kf1 {[%emt 0:00:48]} Rxb2 {[%emt 0:00:29]} 35. a4 {[%emt 0:00:24]} c4 {[%emt 0:00:30]} 36. Rc6 {[%emt 0:00:37]} c3 {[%emt 0:00:19]} 37. Ke1 {[%emt 0:00:30]} Be3 {[%emt 0:00:48]} 38. Kd1 {[%emt 0:00:31]} Rd2+ {[%emt 0:00:04]} 39. Ke1 {[%emt 0:00:06]} c2 {[%emt 0:00:08]} 40. Rc8+ {[%emt 0:00:00]} Kf7 {[%emt 0:00:07]} 41. Rc6 0-1

[Event "EYCC 2017"]
[Site "Mamaia"]
[Date "2017.09.14"]
[Round "9"]
[White "Samadov, Read"]
[Black "Nahornyi, Ihor"]
[Result "1-0"]
[ECO "B42"]
[WhiteElo "1848"]
[BlackElo "1690"]
[Annotator "NA RC"]
[PlyCount "97"]
[EventDate "2017.??.??"]
[EventType "swiss"]
[EventCountry "ROU"]
[SourceTitle "playchess.com"]
[Source "ChessBase"]
[SourceQuality "1"]
[TimeControl "40/5400+30:1800+30"]

1. e4 {[%emt 0:00:00]} c5 {[%emt 0:00:12]} 2. Nf3 {[%emt 0:00:00]} e6 {[%emt 0:00:24]} 3. d4 {[%emt 0:00:00]} cxd4 {[%emt 0:00:06]} 4. Nxd4 {[%emt 0:00:00]} a6 {[%emt 0:00:28]} 5. Bd3 {[%emt 0:01:24]} Nf6 {[%emt 0:00:42]} 6. Qe2 {[%emt 0:02:33]} d6 {[%emt 0:03:14]} 7. O-O {[%emt 0:02:15]} Nbd7 {[%emt 0:02:13]} 8. c4 {[%emt 0:02:27]} Qc7 {[%emt 0:02:55]} 9. Nc3 {[%emt 0:02:03]} Ne5 {[%emt 0:06:33]} 10. b3 {[%emt 0:13:24]} b5 {[%emt 0:07:20]} 11. Bg5 {[%emt 0:07:55]} Be7 {[%emt 0:06:24]} 12. Rac1 {[%emt 0:06:20]} Nxd3 {[%emt 0:03:56]} 13. Qxd3 {[%emt 0:01:16]} bxc4 {[%emt 0:00:32]} 14. Qe2 {[%emt 0:06:29]} Bb7 {[%emt 0:06:51]} 15. f3 {[%emt 0:03:39]} O-O {[%emt 0:07:35]} 16. Na4 {[%emt 0:04:40]} Qd8 {[%emt 0:17:30]} 17. Rxc4 {[%emt 0:06:39]} h6 {[%emt 0:03:00]} 18. Bh4 {[%emt 0:04:14]} d5 {[%emt 0:02:01]} 19. exd5 {[%emt 0:01:57]} Bxd5 {[%emt 0:00:31]} 20. Rcc1 {[%emt 0:01:20]} Nd7 {[%emt 0:06:39]} 21. Bxe7 {[%emt 0:03:13]} Qxe7 {[%emt 0:00:12]} 22. Qd2 {[%emt 0:03:26]} Qd6 {[%emt 0:02:50]} 23. Rfd1 {[%emt 0:02:46]} Nb6 {[%emt 0:01:12]} 24. Nxb6 {[%emt 0:02:10]} Qxb6 {[%emt 0:00:07]} 25. Qe3 {[%emt 0:05:02]} Rac8 {[%emt 0:05:39]} 26. Nf5 {[%emt 0:01:42]} Qxe3+ {[%emt 0:00:32]} 27. Nxe3 {[%emt 0:00:08]} Rfd8 {[%emt 0:04:53]} 28. Kf2 {[%emt 0:04:37]} Kf8 {[%emt 0:03:00]} 29. Ke2 {[%emt 0:01:53]} Rxc1 {[%emt 0:00:45]} 30. Rxc1 {[%emt 0:00:08]} h5 {[%emt 0:02:16]} 31. Rc5 {[%emt 0:01:17]} Rd6 {[%emt 0:01:19]} 32. Nxd5 {[%emt 0:01:16]} exd5 {[%emt 0:00:08]} 33. Kd3 {[%emt 0:00:49]} Ke7 {[%emt 0:01:36]} 34. Kd4 {[%emt 0:00:28]} Ke6 {[%emt 0:01:35]} 35. b4 {[%emt 0:00:51]} Rb6 {[%emt 0:01:24]} 36. a3 {[%emt 0:00:13]} Rd6 {[%emt 0:00:19]} 37. a4 {[%emt 0:02:20]} Rb6 {[%emt 0:01:10]} 38. b5 {[%emt 0:00:26]} axb5 {[%emt 0:00:31]} 39. axb5 {[%emt 0:00:07]} Rd6 {[%emt 0:00:08]} 40. Rc1 {[%emt 0:00:00]} Rb6 {[%emt 0:01:10]} 41. Kc5 {[%emt 0:03:26]} Rb8 {[%emt 0:00:18]} 42. Re1+ {[%emt 0:00:49]} Kf5 {[%emt 0:09:49]} 43. b6 {[%emt 0:00:49]} d4 {[%emt 0:01:30]} 44. Kc6 {[%emt 0:00:23]} Rc8+ {[%emt 0:10:03]} 45. Kd7 {[%emt 0:00:17]} Rc2 {[%emt 0:02:43]} 46. Rb1 {[%emt 0:00:18]} Ra2 {[%emt 0:00:31]} 47. b7 {[%emt 0:00:49]} Ra7 {[%emt 0:00:09]} 48. Kc6 {[%emt 0:00:04]} Rxb7 {[%emt 0:00:14]} 49. Rxb7 {[%emt 0:00:09]} 1-0

[Event "EYCC 2017"]
[Site "Mamaia"]
[Date "2017.09.14"]
[Round "9"]
[White "Vidruk, Mariia"]
[Black "Czarnecka, Lidia"]
[Result "1/2-1/2"]
[ECO "A01"]
[WhiteElo "1848"]
[BlackElo "1792"]
[Annotator "NA RC"]
[PlyCount "112"]
[EventDate "2017.??.??"]
[EventType "swiss"]
[EventCountry "ROU"]
[SourceTitle "playchess.com"]
[Source "ChessBase"]
[SourceQuality "1"]
[TimeControl "40/5400+30:1800+30"]

1. b3 {[%emt 0:00:00]} d5 {[%emt 0:00:50]} 2. Bb2 {[%emt 0:00:00]} Nf6 {[%emt 0:00:15]} 3. e3 {[%emt 0:00:15]} c5 {[%emt 0:00:21]} 4. Nf3 {[%emt 0:01:55]} Nc6 {[%emt 0:00:53]} 5. Bb5 {[%emt 0:00:46]} Bd7 {[%emt 0:01:10]} 6. O-O {[%emt 0:01:05]} e6 {[%emt 0:00:19]} 7. d4 {[%emt 0:03:06]} cxd4 {[%emt 0:00:42]} 8. exd4 {[%emt 0:00:29]} Bd6 {[%emt 0:00:25]} 9. Nbd2 {[%emt 0:02:15]} O-O {[%emt 0:00:30]} 10. c4 {[%emt 0:01:45]} Re8 {[%emt 0:04:27]} 11. Ne5 {[%emt 0:06:44]} Ne7 {[%emt 0:03:42]} 12. Nxd7 {[%emt 0:06:37]} Nxd7 {[%emt 0:01:23]} 13. c5 {[%emt 0:01:11]} Bc7 {[%emt 0:00:40]} 14. b4 {[%emt 0:04:02]} Nc6 {[%emt 0:02:31]} 15. Qa4 {[%emt 0:03:07]} Bf4 {[%emt 0:01:50]} 16. Nf3 {[%emt 0:02:00]} Qc7 {[%emt 0:00:20]} 17. g3 {[%emt 0:02:53]} Bh6 {[%emt 0:00:08]} 18. Rfe1 {[%emt 0:02:09]} a5 {[%emt 0:01:16]} 19. Bxc6 {[%emt 0:02:47]} bxc6 {[%emt 0:01:24]} 20. b5 {[%emt 0:05:52]} cxb5 {[%emt 0:01:09]} 21. Qxb5 {[%emt 0:00:27]} Rab8 {[%emt 0:07:38]} 22. Qe2 {[%emt 0:00:39]} g6 {[%emt 0:00:16]} 23. Bc1 {[%emt 0:07:01]} Bg7 {[%emt 0:13:27]} 24. Bf4 {[%emt 0:01:33]} e5 {[%emt 0:00:10]} 25. dxe5 {[%emt 0:01:16]} Qxc5 {[%emt 0:03:36]} 26. Qd3 {[%emt 0:03:02]} Rb2 {[%emt 0:03:52]} 27. Be3 {[%emt 0:01:28]} Qc8 {[%emt 0:08:56]} 28. Bd4 {[%emt 0:05:45]} Rc2 {[%emt 0:00:42]} 29. Qb5 {[%emt 0:03:21]} Nf8 {[%emt 0:06:57]} 30. Qxd5 {[%emt 0:03:07]} a4 {[%emt 0:00:58]} 31. Ng5 {[%emt 0:07:42]} Re7 {[%emt 0:01:08]} 32. a3 {[%emt 0:01:45]} h6 {[%emt 0:00:25]} 33. Ne4 {[%emt 0:03:40]} Qg4 {[%emt 0:01:47]} 34. Bc3 {[%emt 0:11:20]} Rd7 {[%emt 0:01:12]} 35. Qc4 {[%emt 0:01:09]} Qf3 {[%emt 0:00:50]} 36. Re3 {[%emt 0:01:43]} Rd1+ {[%emt 0:01:04]} 37. Rxd1 {[%emt 0:00:02]} Qxd1+ {[%emt 0:00:11]} 38. Qf1 {[%emt 0:02:34]} Qd5 {[%emt 0:00:21]} 39. Nf6+ {[%emt 0:02:14]} Bxf6 {[%emt 0:00:33]} 40. exf6 {[%emt 0:00:00]} Ne6 {[%emt 0:02:37]} 41. h4 {[%emt 0:03:06]} Qc6 {[%emt 0:03:03]} 42. Bb4 {[%emt 0:01:57]} Nd4 {[%emt 0:00:36]} 43. Qg2 {[%emt 0:00:49]} Qxf6 {[%emt 0:01:09]} 44. Be7 {[%emt 0:03:14]} Qf5 {[%emt 0:01:26]} 45. Bd6 {[%emt 0:06:16]} Rc1+ {[%emt 0:00:21]} 46. Kh2 {[%emt 0:00:11]} Rc2 {[%emt 0:00:08]} 47. Re8+ {[%emt 0:02:41]} Kh7 {[%emt 0:00:21]} 48. Bf4 {[%emt 0:07:26]} Ne6 {[%emt 0:10:10]} 49. Be3 {[%emt 0:00:46]} Qf6 {[%emt 0:09:14]} 50. Qe4 {[%emt 0:01:09]} Ra2 {[%emt 0:01:21]} 51. Qxa4 {[%emt 0:00:59]} Rxf2+ {[%emt 0:01:18]} 52. Bxf2 {[%emt 0:00:53]} Qxf2+ {[%emt 0:00:04]} 53. Kh3 {[%emt 0:01:07]} Qf1+ {[%emt 0:00:19]} 54. Kh2 {[%emt 0:00:18]} Qf2+ {[%emt 0:00:04]} 55. Kh3 {[%emt 0:00:14]} Qf1+ {[%emt 0:00:13]} 56. Kh2 {[%emt 0:00:06]} Qf2+ {[%emt 0:00:06] Rd8} 1/2-1/2

[Event "EYCC 2017"]
[Site "Mamaia"]
[Date "2017.09.14"]
[Round "9"]
[White "Pawicka, Magdalena"]
[Black "Chicarosie, Ioana-Bianca"]
[Result "1-0"]
[ECO "C44"]
[WhiteElo "1826"]
[BlackElo "1565"]
[Annotator "NA RC"]
[PlyCount "131"]
[EventDate "2017.??.??"]
[EventType "swiss"]
[EventCountry "ROU"]
[SourceTitle "playchess.com"]
[Source "ChessBase"]
[SourceQuality "1"]
[TimeControl "40/5400+30:1800+30"]

1. e4 e5 2. Nf3 Nc6 3. d4 exd4 4. Nxd4 g6 5. Be3 Bg7 6. Bc4 Nge7 7. O-O O-O 8. c3 d6 9. Na3 Nxd4 10. Bxd4 Nc6 11. Bxg7 Kxg7 12. Nc2 Be6 13. Be2 d5 14. Bf3 Ne5 15. Nd4 Nxf3+ 16. Qxf3 Qf6 17. Qxf6+ Kxf6 18. Nxe6 Kxe6 19. exd5+ Kxd5 20. Rad1+ Kc6 21. Rfe1 Rfe8 22. Kf1 f5 23. f3 a5 24. Kf2 Rad8 25. Re6+ Rxe6 26. Rxd8 Rd6 27. Rxd6+ Kxd6 28. Ke3 Ke5 29. f4+ Kd5 30. Kd3 b5 31. b3 Kc5 32. a3 c6 33. g3 Kd5 34. c4+ bxc4+ 35. bxc4+ Kc5 36. Kc3 h6 37. Kd3 Kd6 38. Kc3 c5 39. Kd3 Ke6 40. Ke3 Kf6 41. Kf3 a4 42. Kg2 Ke6 43. Kf2 Kf6 44. Kf3 Ke6 45. h3 Kf6 46. Kf2 g5 47. Kf3 h5 48. fxg5+ Kxg5 49. Ke3 h4 50. gxh4+ Kxh4 51. Kf4 Kxh3 52. Kxf5 Kg3 53. Ke4 Kf2 54. Kd5 Ke3 55. Kxc5 Kd3 56. Kb4 Kd4 57. c5 Kd5 58. Kb5 Kd4 59. c6 Kc3 60. c7 Kb3 61. c8=Q Kxa3 62. Qc3+ Ka2 63. Kxa4 Kb1 64. Qd2 Ka1 65. Kb3 Kb1 66. Qd1# 1-0

[Event "EYCC 2017"]
[Site "Mamaia"]
[Date "2017.09.14"]
[Round "9"]
[White "Koubova, Anna Marie"]
[Black "Berdnyk, Mariia"]
[Result "0-1"]
[ECO "E04"]
[WhiteElo "1805"]
[BlackElo "2055"]
[Annotator "NA RC"]
[PlyCount "86"]
[EventDate "2017.??.??"]
[EventType "swiss"]
[EventCountry "ROU"]
[SourceTitle "playchess.com"]
[Source "ChessBase"]
[SourceQuality "1"]
[TimeControl "40/5400+30:1800+30"]

1. d4 {[%emt 0:00:00]} Nf6 {[%emt 0:00:03]} 2. c4 {[%emt 0:00:00]} e6 {[%emt 0:00:03]} 3. g3 {[%emt 0:00:00]} d5 {[%emt 0:01:17]} 4. Nf3 {[%emt 0:00:00]} dxc4 {[%emt 0:00:08]} 5. Bg2 {[%emt 0:00:09]} Nc6 {[%emt 0:00:25]} 6. Qa4 {[%emt 0:00:30]} Bb4+ {[%emt 0:00:38]} 7. Bd2 {[%emt 0:00:18]} Nd5 {[%emt 0:00:48]} 8. Bxb4 {[%emt 0:00:34]} Ndxb4 {[%emt 0:00:05]} 9. Nc3 {[%emt 0:00:46]} Bd7 {[%emt 0:06:28]} 10. O-O {[%emt 0:00:17]} a6 {[%emt 0:02:07]} 11. Ne5 {[%emt 0:05:39]} b5 {[%emt 0:10:32]} 12. Qa3 {[%emt 0:00:36]} Rb8 {[%emt 0:01:22]} 13. Nxc6 {[%emt 0:01:20]} Nxc6 {[%emt 0:00:07]} 14. Qc5 {[%emt 0:00:20]} Ne7 {[%emt 0:09:00]} 15. a4 {[%emt 0:17:06]} O-O {[%emt 0:06:21]} 16. axb5 {[%emt 0:00:57]} axb5 {[%emt 0:01:05]} 17. Ra7 {[%emt 0:02:12]} b4 {[%emt 0:02:49]} 18. Ne4 {[%emt 0:03:30]} Nc8 {[%emt 0:04:26]} 19. Rxc7 {[%emt 0:02:58]} c3 {[%emt 0:01:11]} 20. Nd6 {[%emt 0:07:18]} cxb2 {[%emt 0:01:23]} 21. Rb1 {[%emt 0:00:35]} Nxd6 {[%emt 0:04:09]} 22. Qxd6 {[%emt 0:01:56]} Rc8 {[%emt 0:01:15]} 23. Rxc8 {[%emt 0:01:54]} Qxc8 {[%emt 0:00:08]} 24. Qc5 {[%emt 0:00:16]} b3 {[%emt 0:11:20]} 25. Rxb2 {[%emt 0:15:47]} Qa6 {[%emt 0:02:30]} 26. Rxb3 {[%emt 0:06:47]} Rc8 {[%emt 0:12:23]} 27. Qb6 {[%emt 0:10:17]} Qxe2 {[%emt 0:02:03]} 28. Bf1 {[%emt 0:01:41]} Qc2 {[%emt 0:02:47]} 29. Rb2 {[%emt 0:01:36]} Qe4 {[%emt 0:02:07]} 30. Re2 {[%emt 0:00:58]} Qa8 {[%emt 0:01:47]} 31. Rb2 {[%emt 0:01:14]} Qd5 {[%emt 0:00:34]} 32. Qb7 {[%emt 0:07:33]} Qxd4 {[%emt 0:02:10]} 33. Rb3 {[%emt 0:01:16]} Rc1 {[%emt 0:01:59]} 34. Qa8+ {[%emt 0:02:28]} Bc8 {[%emt 0:00:27]} 35. Rb8 {[%emt 0:01:44]} Qc4 {[%emt 0:00:24]} 36. Qg2 {[%emt 0:01:36]} h6 {[%emt 0:03:22]} 37. h3 {[%emt 0:00:28]} Kh7 {[%emt 0:00:20]} 38. Kh2 {[%emt 0:00:49]} Qc2 {[%emt 0:02:20]} 39. Bb5 {[%emt 0:01:16]} Qd1 {[%emt 0:01:03]} 40. Bc6 {[%emt 0:00:00]} Ba6 {[%emt 0:00:57]} 41. Ra8 {[%emt 0:11:50]} Bc4 {[%emt 0:02:29]} 42. Ra7 {[%emt 0:01:24]} f5 {[%emt 0:01:07]} 43. g4 {[%emt 0:05:23]} Qd6+ {[%emt 0:02:16]} 0-1

[Event "EYCC 2017"]
[Site "Mamaia"]
[Date "2017.09.14"]
[Round "9"]
[White "Mkrtchyan, Mariam"]
[Black "Levitan, Ronit"]
[Result "1-0"]
[ECO "E04"]
[WhiteElo "1794"]
[BlackElo "1837"]
[Annotator "NA RC"]
[PlyCount "49"]
[EventDate "2017.??.??"]
[EventType "swiss"]
[EventCountry "ROU"]
[SourceTitle "playchess.com"]
[Source "ChessBase"]
[SourceQuality "1"]
[TimeControl "40/5400+30:1800+30"]

1. d4 {[%emt 0:00:00]} d5 {[%emt 0:00:06]} 2. Nf3 {[%emt 0:00:00]} Nf6 {[%emt 0:00:05]} 3. c4 {[%emt 0:00:00]} e6 {[%emt 0:00:05]} 4. g3 {[%emt 0:00:20]} dxc4 {[%emt 0:00:08]} 5. Bg2 {[%emt 0:00:07]} a6 {[%emt 0:00:21]} 6. O-O {[%emt 0:00:18]} Nc6 {[%emt 0:00:53]} 7. Bg5 {[%emt 0:00:44]} Rb8 {[%emt 0:05:26]} 8. Nc3 {[%emt 0:10:05]} Be7 {[%emt 0:03:08]} 9. e3 {[%emt 0:00:52]} Nd5 {[%emt 0:03:45]} 10. Bxe7 {[%emt 0:01:05]} Qxe7 {[%emt 0:02:38]} 11. Nd2 {[%emt 0:01:56]} b5 {[%emt 0:09:49]} 12. Nxd5 {[%emt 0:07:43]} exd5 {[%emt 0:00:10]} 13. Bxd5 {[%emt 0:00:03]} Nb4 {[%emt 0:01:11]} 14. Bg2 {[%emt 0:00:16]} Bb7 {[%emt 0:04:29]} 15. Bxb7 {[%emt 0:03:26]} Rxb7 {[%emt 0:00:13]} 16. Qf3 {[%emt 0:00:44]} c5 {[%emt 0:06:12]} 17. a3 {[%emt 0:20:09]} Nd3 {[%emt 0:00:21]} 18. b3 {[%emt 0:00:17]} cxb3 {[%emt 0:19:19]} 19. Qf5 {[%emt 0:02:19]} O-O {[%emt 0:16:55]} 20. Qxd3 {[%emt 0:00:01]} c4 {[%emt 0:00:20]} 21. Qc3 {[%emt 0:01:05]} Ra8 {[%emt 0:03:50]} 22. e4 {[%emt 0:08:15]} a5 {[%emt 0:02:42]} 23. a4 {[%emt 0:02:48]} bxa4 {[%emt 0:00:47]} 24. Rxa4 {[%emt 0:01:08]} b2 {[%emt 0:02:36]} 25. Rb1 {[%emt 0:00:53]} 1-0

[Event "EYCC 2017"]
[Site "Mamaia"]
[Date "2017.09.14"]
[Round "9"]
[White "Zvereva, Margarita"]
[Black "Roebers, Eline"]
[Result "1/2-1/2"]
[ECO "B19"]
[WhiteElo "1790"]
[BlackElo "1816"]
[Annotator "NA RC"]
[PlyCount "86"]
[EventDate "2017.??.??"]
[EventType "swiss"]
[EventCountry "ROU"]
[SourceTitle "playchess.com"]
[Source "ChessBase"]
[SourceQuality "1"]
[TimeControl "40/5400+30:1800+30"]

1. e4 {[%emt 0:00:00]} c6 {[%emt 0:00:32]} 2. d4 {[%emt 0:00:00]} d5 {[%emt 0:00:14]} 3. Nc3 {[%emt 0:00:20]} dxe4 {[%emt 0:00:18]} 4. Nxe4 {[%emt 0:00:06]} Bf5 {[%emt 0:00:15]} 5. Ng3 {[%emt 0:00:15]} Bg6 {[%emt 0:00:31]} 6. h4 {[%emt 0:00:11]} h6 {[%emt 0:00:13]} 7. Nf3 {[%emt 0:00:22]} Nd7 {[%emt 0:00:38]} 8. h5 {[%emt 0:00:39]} Bh7 {[%emt 0:00:15]} 9. Bd3 {[%emt 0:00:32]} Bxd3 {[%emt 0:00:27]} 10. Qxd3 {[%emt 0:00:11]} Ngf6 {[%emt 0:00:37]} 11. Ne4 {[%emt 0:05:51]} Nxe4 {[%emt 0:00:39]} 12. Qxe4 {[%emt 0:00:01]} Nf6 {[%emt 0:00:34]} 13. Qe2 {[%emt 0:00:30]} Qc7 {[%emt 0:01:06]} 14. g3 {[%emt 0:00:32]} e6 {[%emt 0:01:57]} 15. Bf4 {[%emt 0:01:27]} Bb4+ {[%emt 0:03:25]} 16. c3 {[%emt 0:03:49]} Bd6 {[%emt 0:00:47]} 17. Ne5 {[%emt 0:18:57]} O-O-O {[%emt 0:08:14]} 18. O-O-O {[%emt 0:00:49]} Rhf8 {[%emt 0:07:26]} 19. Kb1 {[%emt 0:09:32]} Nd7 {[%emt 0:03:39]} 20. Nd3 {[%emt 0:14:29]} c5 {[%emt 0:05:56]} 21. dxc5 {[%emt 0:09:30]} Nxc5 {[%emt 0:03:00]} 22. Nxc5 {[%emt 0:04:44]} Qxc5 {[%emt 0:01:52]} 23. Be3 {[%emt 0:04:30]} Qf5+ {[%emt 0:05:30]} 24. Ka1 {[%emt 0:01:18]} Kb8 {[%emt 0:06:00]} 25. Rd4 {[%emt 0:09:58]} Bc7 {[%emt 0:06:32]} 26. Ra4 {[%emt 0:06:20]} a6 {[%emt 0:02:28]} 27. Rd4 {[%emt 0:03:40]} e5 {[%emt 0:06:08]} 28. Rdd1 {[%emt 0:03:06]} Rxd1+ {[%emt 0:02:41]} 29. Rxd1 {[%emt 0:00:12]} Rd8 {[%emt 0:02:07]} 30. Rxd8+ {[%emt 0:01:40]} Bxd8 {[%emt 0:00:06]} 31. a3 {[%emt 0:00:40]} Qd7 {[%emt 0:08:03]} 32. Bd2 {[%emt 0:00:57]} Qd5 {[%emt 0:01:21]} 33. c4 {[%emt 0:00:25]} Qe6 {[%emt 0:00:51]} 34. Bc3 {[%emt 0:00:24]} Bc7 {[%emt 0:00:22]} 35. Bb4 {[%emt 0:00:39]} Bd6 {[%emt 0:01:24]} 36. Bc3 {[%emt 0:00:24]} Qf5 {[%emt 0:04:44]} 37. g4 {[%emt 0:00:42]} Qf4 {[%emt 0:01:04]} 38. Bd2 {[%emt 0:00:36]} Qf6 {[%emt 0:02:04]} 39. Ka2 {[%emt 0:00:24]} Bc5 {[%emt 0:00:52]} 40. f3 {[%emt 0:00:00]} Bd4 {[%emt 0:01:19]} 41. Be3 {[%emt 0:16:15]} Qb6 {[%emt 0:06:16]} 42. Bc1 {[%emt 0:02:26]} a5 {[%emt 0:03:20]} 43. b3 {[%emt 0:09:18]} Qc6 {[%emt 0:04:26]} 1/2-1/2